Cogmind - Beta 13 @@@ ROGUE MODE // 2024.04.01 @ 21:25:02 Player: Ciaphas Result: Self-destructed Performance ------------- Evolutions (2) 1000 Regions Visited (5) 1000 Robots Destroyed (24) 120 Value Destroyed (534) 534 Prototype IDs (4) 80 Alien Tech Used (0) 0 Bonus (300) 300 TOTAL SCORE: 3034 Bonus ------- Aligned with FarCom 300 Cogmind --------- Core Integrity 52/550 Matter 300/300 Energy 1/100 System Corruption 0% Temperature Cool (12) Movement Flying (31) Location -8/Materials Parts ------- > --- POWER (1) -------- (None) > --- PROPULSION (4) --- Improved Flight Unit Improved Flight Unit Improved Flight Unit Improved Flight Unit > --- UTILITY (4) ------ Improved Propulsion Shielding > --- WEAPON (2) ------- Flail > --- INVENTORY (5) ---- VTOL Module VTOL Module VTOL Module Rocket Launcher Peak State ------------ > --- POWER ------------ Improved Ion Engine > --- PROPULSION ------- Improved Carbon-fiber Leg Improved Carbon-fiber Leg Potential Leg Potential Leg > --- UTILITY ---------- Large Storage Unit Improved Propulsion Shielding Improved Propulsion Shielding Improved Propulsion Shielding > --- WEAPON ----------- Flail Flail > --- INVENTORY -------- Ion Engine Light Ion Engine Wheel VTOL Module VTOL Module VTOL Module Improved Flight Unit Improved Flight Unit Improved Flight Unit Improved Flight Unit Terrain Scanner Assault Rifle Rocket Launcher Mining Laser Blade Saw [Rating: 46] Favorites ----------- Power Ion Engine Engine Ion Engine Propulsion Light Treads Treads Light Treads Leg Potential Leg Flight Unit Improved Flight Unit Utility Large Storage Unit Device Sensor Array Storage Large Storage Unit Protection Improved Propulsion Shielding Weapon Heavy Assault Rifle Energy Gun Small Laser Energy Cannon YOLO Cannon Ballistic Gun Heavy Assault Rifle Launcher Rocket Launcher Special Weapon Mining Laser Impact Weapon Flail Slashing Weapon Blade Saw Build | -11 -10 -10 -10 -9 -8 ------- Run | Yrd Mat Min Exi Min Mat Slots Evolved 4 | . . . . . 4 Power . | . . . . . . Propulsion 2 | . . . . . 2 Utility 2 | . . . . . 2 Weapon . | . . . . . . Parts Attached 53 | 2 9 1 12 3 26 Power 7 | . 2 1 . . 4 Engine 7 | . 2 1 . . 4 Core . | . . . . . . Reactor . | . . . . . . Propulsion 13 | 2 1 . 4 . 6 Treads 4 | 2 1 . 1 . . Leg 5 | . . . 3 . 2 Wheel . | . . . . . . Hover . | . . . . . . Flight 4 | . . . . . 4 Utility 13 | . 3 . 3 1 6 Device 7 | . 2 . 3 . 2 Storage 1 | . 1 . . . . Processor . | . . . . . . Hackware . | . . . . . . Protection 5 | . . . . 1 4 Artifact . | . . . . . . Weapon 20 | . 3 . 5 2 10 Energy Gun . | . . . . . . Energy Cannon 1 | . . . 1 . . Ballistic Gun 11 | . 3 . 4 1 3 Ballistic Cannon . | . . . . . . Launcher 3 | . . . . 1 2 Special Weapon 1 | . . . . . 1 Impact Weapon 2 | . . . . . 2 Slashing Weapon 2 | . . . . . 2 Piercing Weapon . | . . . . . . Special Melee Weapon . | . . . . . . Unidentified Prototypes 3 | . . . 3 . . Parts Lost 11 | . . . . . 11 Power 3 | . . . . . 3 Propulsion . | . . . . . . Utility 4 | . . . . . 4 Weapon 4 | . . . . . 4 Highest Loss Streak 5 | . . . . . 5 To Critical Strikes . | . . . . . . Average Slot Usage (%) 93 | . 98 100 98 100 79 Engine 12 | . 13 14 14 14 8 Treads 17 | . 28 28 24 . . Leg 9 | . . . 3 28 23 Device 10 | . 12 14 13 12 3 Storage 12 | . 14 14 14 14 8 Protection 4 | . . . . 1 15 Ballistic Gun 21 | . 27 28 27 27 5 Impact Weapon 2 | . . . . . 9 Naked Turns . | . . . . . . Heaviest Build 37 | 13 32 32 32 34 37 Greatest Support 96 | 40 40 40 60 60 96 Greatest Overweight (x) 8 | . . . 8 . . Average Overweight (x) . | . . . . . . Largest Inventory Capacity 15 | 8 15 15 15 15 15 Average Capacity 14 | 8 13 15 15 15 14 Most Carried 15 | 7 13 14 15 13 15 Average Carried 11 | 6 10 13 13 11 12 Final Capacity 15 | 8 15 15 15 15 5 Final Carried 13 | 6 13 13 12 10 4 Class Distribution -------------------- 88% | Mutant 8% | Skirmisher Dominant Class ---------------- Mutant | -10/Materials Mutant | -10/Mines Mutant | -10/Exiles Skirmisher | -9/Mines Mutant | -8/Materials Resources | -11 -10 -10 -10 -9 -8 ----------- Run | Yrd Mat Min Exi Min Mat Matter Collected 1042 | 220 91 89 . 76 566 Remotely . | . . . . . . Salvage Created 532 | . 93 89 . 3 347 Parts 36 | . 10 5 . 4 17 Haulers Intercepted . | . . . . . . Recyclers Shooed . | . . . . . . Parts Field Recycled . | . . . . . . Retrieved Matter . | . . . . . . Parts Self-Destructed . | . . . . . . Prevented . | . . . . . . Kills | -11 -10 -10 -10 -9 -8 ------- Run | Yrd Mat Min Exi Min Mat Combat Hostiles Destroyed 23 | . 6 2 . 3 12 Melee 1 | . . . . . 1 Guns 16 | . 6 2 . . 8 AOE 4 | . . . . 3 1 Classes Destroyed 6 | . 1 1 . . 4 Operator 1 | . . . . . 1 Swarmer 14 | . 6 . . 3 5 Cutter 2 | . . . . . 2 Grunt 3 | . . 2 . . 1 Sentry 3 | . . . . . 3 Heavy 1 | . . . . . 1 Best Kill Streak 6 | . 3 1 . 3 6 Combat Bots Only 6 | . 3 1 . 3 6 Max Kills in Single Turn 2 | . 2 1 . 2 1 Gunslinging 1 | . 1 . . . . Exploded 2 | . . . . 2 1 Melee 1 | . . . . . 1 Uniques/NPCs Destroyed . | . . . . . . Combat | -11 -10 -10 -10 -9 -8 -------- Run | Yrd Mat Min Exi Min Mat Hostile Shots Fired 279 | . 45 13 . 6 215 Missed 107 | . 12 3 . 2 90 Damage Taken 2561 | . 266 152 . 69 2074 Core 578 | . 40 33 . 7 498 Absorbed by Shields . | . . . . . . Redirected to Shielding 257 | . . . . . 257 Core Remaining (%) 84 | 100 . . . 68 . Volleys Fired 58 | . 16 9 . 3 30 Largest 2 | . 2 2 . 1 2 Hottest 46 | . 46 46 . 33 43 Shots Fired 108 | . 32 18 . 3 55 Gun 101 | . 32 18 . . 51 Cannon . | . . . . . . Launcher 7 | . . . . 3 4 Special . | . . . . . . Kinetic 101 | . 32 18 . . 51 Thermal . | . . . . . . Explosive 7 | . . . . 3 4 Electromagnetic . | . . . . . . Robot Hit Streak 9 | . 2 5 . 1 9 Robot Miss Streak 3 | . 2 3 . 2 3 Penetration Max . | . . . . . . Secondary Targets 4 | . 2 . . . 2 Max Gunslinging Chain 1 | . 1 . . . 1 Shots Hit Robots 85 | . 16 12 . 1 56 Core Hits 28 | . 6 4 . 2 16 Critical Kills 1 | . 1 . . . . Critical Parts Destroyed . | . . . . . . Critical Strikes 1 | . 1 . . . . Destroy 1 | . 1 . . . . Melee Attacks 26 | . . . . . 26 Impact 26 | . . . . . 26 Slashing . | . . . . . . Piercing . | . . . . . . Sneak Attacks 1 | . . . . . 1 Combat Hostiles . | . . . . . . Follow-up Attacks 2 | . . . . . 2 Damage Inflicted 1670 | . 250 181 . 200 1039 Guns 885 | . 247 181 . . 457 Cannons . | . . . . . . Explosions 282 | . . . . 200 82 Melee 462 | . . . . . 462 Ramming 41 | . 3 . . . 38 Kinetic 885 | . 247 181 . . 457 Thermal . | . . . . . . Explosive 282 | . . . . 200 82 Electromagnetic . | . . . . . . Impact 462 | . . . . . 462 Slashing . | . . . . . . Piercing . | . . . . . . Highest Corruption . | . . . . . . Average Corruption . | . . . . . . Corruption Purged . | . . . . . . Corruption Blocked . | . . . . . . Overload Shots . | . . . . . . Overflow Damage 65 | . . . . 12 53 Projectiles . | . . . . . . Explosions 12 | . . . . 12 . Melee 53 | . . . . . 53 Knockbacks 1 | . . . . . 1 Impact 1 | . . . . . 1 Kinetic . | . . . . . . Secondary . | . . . . . . Self-Inflicted Damage 36 | . . . . 36 . Shots 1 | . . . . 1 . Rammed 1 | . 1 . . . . Targets Rammed 6 | . 1 . . . 5 Kicked 5 | . . . . . 5 Crushed . | . . . . . . Highest Temperature 25 | . . 22 . . 25 Average Temperature 9 | . . 10 . . 7 Received Heat Transfer 504 | . . 108 . . 396 Siege Activations . | . . . . . . Robots Corrupted . | . . . . . . Combat Hostiles . | . . . . . . Parts Fried 3 | . . . . . 3 Impact Corruptions 6 | . . . . . 6 Robots Melted . | . . . . . . Combat Hostiles . | . . . . . . Parts Melted . | . . . . . . Heat Transferred . | . . . . . . Parts Sabotaged . | . . . . . . Parts Stolen . | . . . . . . Parts Stripped . | . . . . . . Power Chain Reactions . | . . . . . . Alert | -11 -10 -10 -10 -9 -8 ------- Run | Yrd Mat Min Exi Min Mat Peak Influence 384 | . 101 63 . 109 384 Initial 42 | . . 13 . . 42 Average 92 | . 25 51 . 6 215 Maximum Alert Level 1 | . . . . . 1 Low Security (%) 84 | 100 100 100 . 100 57 Level 1 15 | . . . . . 42 Level 2 . | . . . . . . Level 3 . | . . . . . . Level 4 . | . . . . . . Level 5 . | . . . . . . High Security . | . . . . . . Max Security . | . . . . . . Squads Dispatched 6 | . . . . . 6 Investigation . | . . . . . . Extermination . | . . . . . . Reinforcement 6 | . . . . . 6 Assault . | . . . . . . Garrison . | . . . . . . Intercept . | . . . . . . Searches Triggered . | . . . . . . Construction Impeded . | . . . . . . Haulers Reinforced . | . . . . . . Active Scanning Responses . | . . . . . . Cargo Convoy Interrupts . | . . . . . . Stealth | -11 -10 -10 -10 -9 -8 --------- Run | Yrd Mat Min Exi Min Mat Distress Signals 5 | . 1 . . . 4 Communications Jammed . | . . . . . . Distress Signals . | . . . . . . Times Spotted 55 | . 9 2 . 3 41 Peak Tracking Total 13 | . 4 2 . 3 13 Tactical Retreats 8 | . 1 . . . 7 Traps | -11 -10 -10 -10 -9 -8 ------- Run | Yrd Mat Min Exi Min Mat Traps Triggered 1 | . 1 . . . . Indirectly . | . . . . . . Trap Hack Attempts . | . . . . . . Triggered . | . . . . . . Disarmed . | . . . . . . Reprogrammed . | . . . . . . Reused . | . . . . . . Traps Extracted . | . . . . . . Installed . | . . . . . . Triggered . | . . . . . . Machines | -11 -10 -10 -10 -9 -8 ---------- Run | Yrd Mat Min Exi Min Mat Machines Disabled 2 | . 1 . . 1 . Max in Single Turn 1 | . 1 . . 1 . Garrison Access 1 | . . . . . 1 Machines Repaired . | . . . . . . Machines Dismantled . | . . . . . . Machines Sabotaged . | . . . . . . Overloaded Fab Kills . | . . . . . . Hacking | -11 -10 -10 -10 -9 -8 --------- Run | Yrd Mat Min Exi Min Mat Machines Accessed 14 | . 7 . 4 . 3 Terminals 6 | . 5 . . . 1 Fabricators . | . . . . . . Repair Stations . | . . . . . . Recycling Units 2 | . 2 . . . . Scanalyzers 1 | . . . . . 1 Garrison Access 1 | . . . . . 1 Total Hacks 74 | . 15 . 49 . 10 Successful 61 | . 8 . 49 . 4 Failed 13 | . 7 . . . 6 Catastrophic . | . . . . . . Database Lockouts . | . . . . . . Manual 9 | . 7 . 1 . 1 Terminals 13 | . 11 . . . 2 Fabricators . | . . . . . . Repair Stations . | . . . . . . Recycling Units 4 | . 4 . . . . Scanalyzers 3 | . . . . . 3 Garrison Access 5 | . . . . . 5 Terminal Hacks 52 | . 3 . 49 . . Record 49 | . . . 49 . . Robot Analysis 1 | . 1 . . . . Locate Traps 1 | . 1 . . . . Hauler Manifests 1 | . 1 . . . . Fabricator Hacks . | . . . . . . Repair Station Hacks . | . . . . . . Recycling Unit Hacks 3 | . 3 . . . . Process 1 | . 1 . . . . Report Inventory 2 | . 2 . . . . Scanalyzer 2 | . . . . . 2 Insert Component 1 | . . . . . 1 Analyze 1 | . . . . . 1 Garrison Access Hacks 1 | . . . . . 1 Seal Access 1 | . . . . . 1 Unauthorized Hacks 3 | . 2 . . . 1 Terminals 3 | . 2 . . . 1 Botnet 3 | . 2 . . . 1 Fabricators . | . . . . . . Repair Stations . | . . . . . . Recycling Units . | . . . . . . Scanalyzers . | . . . . . . Garrison Access . | . . . . . . Data Cores Recovered 1 | . . . . . 1 Used . | . . . . . . Hacking Detections 7 | . 5 . . . 2 Full Trace Events . | . . . . . . Feedback Events . | . . . . . . Feedback Blocked . | . . . . . . Robot Schematics Acquired . | . . . . . . Robots Built . | . . . . . . Authchips . | . . . . . . Time . | . . . . . . Total Robot Build Rating . | . . . . . . Part Schematics Acquired 1 | . . . . . 1 Parts Built . | . . . . . . Authchips . | . . . . . . Time . | . . . . . . Total Part Build Rating . | . . . . . . Parts Repaired . | . . . . . . Time . | . . . . . . Parts Recycled . | . . . . . . Recycled Matter 124 | . 124 . . . . Retrieved Matter . | . . . . . . Retrieved Components . | . . . . . . Parts Scanalyzed 1 | . . . . . 1 Part Schematics Acquired 1 | . . . . . 1 Parts Damaged . | . . . . . . Bothacking | -11 -10 -10 -10 -9 -8 ------------ Run | Yrd Mat Min Exi Min Mat Used RIF Installer . | . . . . . . Robots Hacked . | . . . . . . Non-combat . | . . . . . . Combat . | . . . . . . Robot Hacks Applied . | . . . . . . Relay Couplers Released . | . . . . . . Fabnet Peak Effective % . | . . . . . . Robots Rewired . | . . . . . . Allies Hacked . | . . . . . . Hacks Repelled . | . . . . . . Allies | -11 -10 -10 -10 -9 -8 -------- Run | Yrd Mat Min Exi Min Mat Total Allies . | . . . . . . Largest Group . | . . . . . . Highest-Rated Group . | . . . . . . Highest-Rated Ally . | . . . . . . Total Orders . | . . . . . . Ally Attacks . | . . . . . . Total Damage . | . . . . . . Kills . | . . . . . . Allies Corrupted . | . . . . . . Allies Melted . | . . . . . . Intel | -11 -10 -10 -10 -9 -8 ------- Run | Yrd Mat Min Exi Min Mat Robot Analysis Total 1 | . 1 . . . . Derelict Logs Recovered 2 | . . 1 . 1 . Drone Launches . | . . . . . . Drone Recoveries . | . . . . . . Exploration | -11 -10 -10 -10 -9 -8 ------------- Run | Yrd Mat Min Exi Min Mat Turns Passed 2956 | 5 982 125 839 253 752 Spaces Moved 2055 | 2 557 58 554 246 638 Core 1 | . . . 1 . . Treads 1067 | 2 557 58 450 . . Legs 813 | . . . 103 246 464 Wheels . | . . . . . . Hover . | . . . . . . Flight 174 | . . . . . 174 Fastest Speed 31 | 160 160 160 90 90 31 Average Speed 123 | 160 160 160 147 90 79 Slowest Speed 450 | 160 160 160 450 90 105 Overloaded Moves . | . . . . . . Propulsion Burnouts . | . . . . . . Robots Hopped . | . . . . . . Cave-ins Triggered . | . . . . . . Exploration Rate (%) 51 | 2 89 18 92 70 39 Regions Visited 5 Branch Regions 3 Pre-discovered Areas 1 | . . . 1 . . Known Exits Taken 1 | . . . . 1 . Unknown Exits Taken 4 | 1 1 1 1 . . Scrap Searched 2 | . . . . 2 . Spaces Dug 3 | . . . . . 3 Terrain Destroyed 63 | . . . . 27 36 Melee 3 | . . . . . 3 Projectile . | . . . . . . AOE 60 | . . . . 27 33 Terrain Rammed . | . . . . . . Walls Destroyed . | . . . . . . Machines Disabled . | . . . . . . Actions | -11 -10 -10 -10 -9 -8 --------- Run | Yrd Mat Min Exi Min Mat Total 2335 | 5 616 72 580 275 787 Wait 83 | . 14 4 . 19 46 Move 2050 | 1 556 57 553 245 638 Hop . | . . . . . . Pick Up 14 | . 10 . . 1 3 Fast Attach 25 | . 6 . 6 . 13 Attach 12 | 2 . . 6 1 3 Detach 15 | 2 2 . 8 1 2 Swap 16 | . 3 1 . 2 10 Drop 32 | . 8 1 7 3 13 Fire 58 | . 16 9 . 3 30 Melee 24 | . . . . . 24 Ram . | . . . . . . Kick 5 | . . . . . 5 Crush 1 | . 1 . . . . Escape Stasis . | . . . . . . Rewire . | . . . . . . Trap . | . . . . . . Miscellaneous . | . . . . . . Route ------- -11/Scrapyard -10/Materials (discovered 3 exits: [*Mat x2] / [*Min]) -10/Mines -10/Exiles -9/Mines (discovered 2 exits: *Mat x2) -8/Materials (discovered 1 exit: [*Fac]) History --------- Turn | Location | Event 4 | -11/Scrapyard | Discovered new exit (range 1) 6 | -11/Scrapyard | Entered Materials 308 | -10/Materials | Build established: Mutant 318 | -10/Materials | Discovered new exit (range 3) 557 | -10/Materials | Discovered new exit (range 8) 769 | -10/Materials | Discovered new exit (range 15) 988 | -10/Materials | Entered Mines 1064 | -10/Mines | Met a Derelict bent on vengeance 1103 | -10/Mines | Deemed a non-threat by the Exiles lab entrance 1105 | -10/Mines | Discovered new exit (range 5) 1113 | -10/Mines | Entered Exiles 1152 | -10/Exiles | Met 8R-AWN 1185 | -10/Exiles | Met EX-HEX 1261 | -10/Exiles | Met EX-DEC 1300 | -10/Exiles | Visited The Gauntlet 1507 | -10/Exiles | Learned location of Zion (-7) 1563 | -10/Exiles | Discovered new exit (range 10) 1691 | -10/Exiles | Met EX-BIN 1717 | -10/Exiles | Aligned with FarCom system 1718 | -10/Exiles | Given EX-Vault access code 1790 | -10/Exiles | Opened EX-Vault 1800 | -10/Exiles | Found Prototype Device 1800 | -10/Exiles | Identified PSU Rigger 1818 | -10/Exiles | Found Prototype Energy Cannon 1818 | -10/Exiles | Identified YOLO Cannon 1825 | -10/Exiles | Found Prototype Leg 1825 | -10/Exiles | Identified Potential Leg 1859 | -10/Exiles | Found Potential Leg 1880 | -10/Exiles | Warned to stay clear of 0b10 Research branches 1952 | -10/Exiles | Left Exiles lab with Potential Leg 1952 | -10/Exiles | Entered Mines 2035 | -9/Mines | Identified exit to Materials 2039 | -9/Mines | Found a hidden stash of uninstalled traps 2187 | -9/Mines | Discovered exit to Materials (range 12) 2205 | -9/Mines | Entered Materials 2205 | -8/Materials | Evolved 4 slots: Propulsion x2, Utility x2 2524 | -8/Materials | Met 7R-MNS 2544 | -8/Materials | Lost 5 parts (2u3w) 2669 | -8/Materials | Discovered new exit (range 7) 2804 | -8/Materials | Core integrity fell below 50% 2853 | -8/Materials | Lost 3 parts (2p1u) 2953 | -8/Materials | Core integrity fell below 20% 2957 | -8/Materials | Self-destructed Last Messages --------------- corrupted. 02902_ Hacking Suite fried. 02902_ Datajack fried. 02903_ Mining Laser destroyed. 02903_ Acquired data core, extracted dynamic key. 02903_ Decrypted 6 local trap positions from data. 02904_ Acquired 16 matter. 02913_ S-10 Pest destroyed. 02916_ K-01 Serf cleans the Terminal. 02917_ M-13 Machinist repairs K-01 Serf. 02917_ K-01 Serf collects debris. 02923_ Terrain Scanner destroyed. 02924_ S-10 Pest destroyed. 02924_ R-06 Scavenger collects Flight Unit. 02928_ Lgt. Ion Engine destroyed. 02935_ Acquired 29 matter. 02937_ ALERT: Hostiles spotted, dispatching reinforcements to Terminal M009. Map ----- +----------------------------------------------------+ | ????????# #???# #??????? [# """ # #????? | | ????????# #####+##??"""" # """ # #????? | | ????????# # % ## """"" !# """ + #????? | | ????????# # ## """"" # # #????? | | ????????# # " #? """"" =# """ ### #????? | | ????????# ^# "" #??""""" ?# """ #?# #????? | | ?????#### ^ # "" #??? ?# """ ### ###??? | | ????##! # """ #???##+####[ # #??? | | ????#! # "" #???# == +! # #??? | | ????#! # "" #####% =########### #??? | | ????#! # """ + *#?###?????# #??? | | ????#! # """ ##### %%### ####### #??? | | ????##! #% " s#???# % # ! #######??? | | ????##### #! #??## # """ #????????? | | ????#!! ###s####### # """ #????????? | | ????#!! # / """ #????????? | | ????#== + #????????? | | ????#== # / #????????? | | ????# ########### # #????????? | | ????#== # # # #????????? | | ######### # """ """ #x% ###########????????? | | # # """ """ # %##?????????????????? | | """ # # """ """ # ##?????????????????? | | """ # # + ##?????????????????? | | """ # # #x ########???????????? | | ] + + # @# ] ! ]#???????????? | | """ # # # # #???????????? | | """ # ########### # """ #???????????? | | """ # #### ## + """ #???????????? | | # ## # """ #???????????? | | ######### ## #! #???????????? | | ????????# ## #?######???????????? | | ????????####+### ## #??????????????????? | | ????????# ## ### #??????????????????? | | ????????# ## #?# #??????????????????? | | ????????# """ ## #?# #??????????????????? | | ????????# """ ## #?# #??????????????????? | | ????????# """ ## #?# #??????????????????? | | ????????# ## #?# #??????????????????? | | ????????######### ###g %#??????????????????? | | ???????????????# ## g######?????????????? | | ???????????????# =[ #?????????????? | | ???????????????# #?????????????? | | ???????????????# =! #?????????????? | | ???????????????# ####### #?????????????? | | ???????????????#######?????# #?????????????? | | ???????????????????????????# #?????????????? | | ???????????????????????????# #####?????????? | | ???????????????????????????# #?????????? | | ???????????????????????????# < #?????????? | +----------------------------------------------------+ Best States ------------- Heat Dissipation 31 Energy Generation 12 Energy Capacity 265 Matter Stores 300 Matter Capacity 300 Sight Range 16 Robot Scan Range 14 Terrain Scan Range 14 Terrain Scan Density 10 Armor Coverage 150 Propulsion Shielding 66 Evasion (%) 63 Recoil Reduction 4 Item Schematics ----------------- Imp. Flight Unit | -8/Materials | Scanalyzed Robot Schematics ------------------ None Fabricated ------------ Nothing Alien Tech Used ----------------- None Achievements -------------- None Challenges ------------ None Game ------ Seed DispersionArmageddonGravjet Manual? 0 Play Time 00:42:12 Cumulative 2.9 hours Start 2024.04.01 @ 20:41:03 End 2024.04.01 @ 21:25:02 Sessions 1 Manual Loads 0 Difficulty Rogue Special Mode None Game No. 5 Rogue 5 Adventurer 0 Explorer 0 Win Type - Total 0 Types 0/0/0/0/0/0/0/0/0 Lore% 10 Gallery% 7 Achievement% 21 Wizard Run 0 Options --------- Layout 1 ASCII 0 Keyboard 0 Movement Numpad Keybinds 0 Fullscreen 2 Font 32/Proggy Map View 50x35 Zoom Use 0% Tactical HUD 1 Map Filters NONE Filters NONE Steam 1 RUN: 3c4433b8-0a21-4ab9-9876-4b55f5bada87